fUSD/lending_fUSD_20240329
["ID","MTS","AMOUNT","RATE_DAILY","PERIOD"]
[320964958,1711722678551,-500.0,0.00055342,120]
[320964959,1711722678561,-2640.0,0.00055342,120]
[320964960,1711722678570,-1646.75,0.00055342,120]
[320964961,1711722678579,-857.96,0.00055342,21]
[320964962,1711722678593,-151.0,0.0005537,120]
[320964963,1711722678602,-806.90977341,0.00055391,14]
[320964964,1711722678616,-154.73390356,0.00055393,120]
[320964965,1711722678626,-154.73390356,0.00055523,120]
[320964966,1711722678637,-152.41256319,0.0005559,120]
[320964967,1711722678649,-1185.44955845,0.00055616,120]
[320964968,1711722678659,-1151.67000004,0.00055616,120]
[320964969,1711722678669,-1817.63,0.00055616,120]
[320964970,1711722678679,-1906.98,0.00055616,120]
[320964971,1711722678690,-671.19,0.00055616,120]
[320964972,1711722678701,-538.86,0.00055616,120]
[320964973,1711722678711,-1454.45,0.00055616,120]
[320964974,1711722678721,-778.53,0.00055616,120]
[320964975,1711722678730,-2220.67642027,0.00055616,120]
[320964976,1711722678739,-1554.93,0.00055616,120]
[320964977,1711722678749,-585.36,0.00055616,120]
[320964978,1711722678759,-2440.79,0.00055616,120]
[320964979,1711722678768,-1267.7,0.00055616,120]
[320964980,1711722678778,-1774.0,0.00055616,120]
[320964981,1711722678787,-4495.60178246,0.00055616,120]
[320964982,1711722678796,-3765.42,0.00055616,120]
[320964983,1711722678805,-3126.83003666,0.00055616,120]
[320964984,1711722678815,-361.42,0.00055616,120]
[320964985,1711722678824,-2640.08,0.00055616,120]
[320964986,1711722678833,-151.0,0.00055616,30]
[320964987,1711722678843,-151.0,0.00055616,30]
[320964988,1711722678852,-151.0,0.00055616,120]
[320964989,1711722678862,-1646.83,0.00055616,120]
[320964990,1711722678871,-151.0,0.00055616,120]
[320964991,1711722678880,-858.00253816,0.00055616,21]
[320964992,1711722678890,-582.618186,0.00055616,120]
[320964993,1711722678899,-7547.93178815,0.00055641,33]
[320964994,1711722678908,-200.0,0.00055688,120]
[320964995,1711722678918,-1400.0,0.00055692,120]
[320964996,1711722678927,-150.0,0.00055692,30]
[320964997,1711722678937,-152.41256319,0.00055774,120]
[320964998,1711722678946,-243.27777778,0.00055836,120]
[320964999,1711722678956,-312.76,0.00055856,2]
[320965000,1711722678966,-159.2686262,0.00055863,120]
[320965001,1711722678975,-1000.0,0.0005589,120]
[320965002,1711722678984,-778.53,0.0005589,120]
[320965003,1711722678993,-3765.42,0.0005589,120]
[320965004,1711722679003,-152.41256319,0.00055994,120]
[320965005,1711722679013,-35849.33,0.00056,25]
[320965006,1711722679022,-1000.0,0.00056,120]
[320965007,1711722679031,-195.98,0.00056,30]
[320965008,1711722679041,-5800.0,0.00056066,7]
[320965009,1711722679050,-5800.0,0.00056075,7]
[320965010,1711722679059,-5800.0,0.00056083,7]
[320965011,1711722679069,-5800.0,0.00056091,7]
[320965012,1711722679082,-5800.0,0.000561,7]
[320965013,1711722679091,-778.53,0.00056164,120]
[320965014,1711722679102,-3765.42,0.00056164,120]
[320965015,1711722679112,-20431.19340125,0.000562,120]
[320965016,1711722679122,-472.7885742,0.0005629,56]
[320965017,1711722679131,-6920.17337439,0.00056317,2]
[320965018,1711722679141,-158.49334373,0.000564,120]
[320965019,1711722679150,-778.53,0.00056438,120]
[320965020,1711722679160,-3765.42,0.00056438,120]
[320965021,1711722679169,-243.27777778,0.00056438,120]
[320965022,1711722679178,-154.73390356,0.0005654,120]
[320965023,1711722679187,-800.0,0.00056559,120]
[320965024,1711722679196,-151.4857083,0.00056594,120]
[320965025,1711722679206,-592.32391892,0.00056599,120]
[320965026,1711722679215,-200.0,0.00056619,120]
[320965027,1711722679224,-150.72698386,0.00056663,69]
[320965028,1711722679236,-160.0,0.000567,10]
[320965029,1711722679246,-1000.0,0.00056712,120]
[320965030,1711722679256,-778.53,0.00056712,120]
[320965031,1711722679265,-3765.42,0.00056712,120]
[320965032,1711722679275,-151.0,0.00056712,120]
[320965033,1711722679284,-150.0,0.00056744,120]
[320965034,1711722679293,-168.63839945,0.00056753,120]
[320965035,1711722679302,-410.981688,0.000568,30]
[320965036,1711722679312,-656.68518177,0.00056827,30]
[320965037,1711722679321,-155.61103005,0.00056918,120]
[320965038,1711722679330,-211.055,0.00056985,120]
[320965039,1711722679339,-605.0,0.00056985,120]
[320965040,1711722679348,-396.0,0.00056985,120]
[320965041,1711722679357,-150.0,0.00056985,2]
[320965042,1711722679367,-458.0,0.00056985,120]
[320965043,1711722679376,-960.817,0.00056985,120]
[320965044,1711722679385,-778.53,0.00056986,120]
[320965045,1711722679394,-3765.42,0.00056986,120]
[320965046,1711722679404,-1000.0,0.00057,120]
[320965047,1711722679413,-700.0,0.00057009,90]
[320965048,1711722679422,-600.0,0.00057009,90]
[320965049,1711722679431,-243.27777778,0.00057041,120]
[320965050,1711722679440,-154.8752919,0.00057172,120]
[320965051,1711722679450,-152.41256319,0.00057204,120]
[320965052,1711722679459,-153.88,0.00057205,120]
[320965053,1711722679469,-152.41256319,0.00057251,120]
[320965054,1711722679478,-778.53,0.0005726,120]
[320965055,1711722679487,-3765.42,0.0005726,120]
[320965056,1711722679496,-700.0,0.00057283,90]
[320965057,1711722679507,-600.0,0.00057283,90]
[320965058,1711722679516,-160.66712715,0.00057393,120]
[320965059,1711722679525,-1000.0,0.000575,120]
[320965060,1711722679534,-1000.0,0.00057534,120]
[320965061,1711722679543,-778.53,0.00057534,120]
[320965062,1711722679553,-3765.42,0.00057534,120]
[320965063,1711722679562,-700.0,0.00057557,90]
[320965064,1711722679572,-600.0,0.00057557,90]
[320965065,1711722679581,-6642.13923493,0.00057592,2]
[320965066,1711722679590,-243.27777778,0.00057644,120]
[320965067,1711722679600,-4383.02987368,0.00057678,2]
[320965068,1711722679609,-151.4857083,0.00057752,120]
[320965069,1711722679618,-778.53,0.00057808,120]
[320965070,1711722679627,-3765.42,0.00057808,120]
[320965071,1711722679637,-7547.93178815,0.00057813,36]
[320965072,1711722679646,-700.0,0.00057831,90]
[320965073,1711722679655,-600.0,0.00057831,90]
[320965074,1711722679665,-153.33171327,0.00057964,120]
[320965075,1711722679674,-152.41256319,0.00057966,120]
[320965076,1711722679684,-1000.0,0.00057978,3]
[320965077,1711722679693,-1000.0,0.00058,120]
[320965078,1711722679702,-5720.0,0.00058,3]
[320965079,1711722679711,-151.0,0.00058055,120]
[320965080,1711722679721,-150.72698386,0.00058069,75]
[320965081,1711722679730,-778.53,0.00058082,120]
[320965082,1711722679739,-3765.42,0.00058082,120]
[320965083,1711722679748,-152.99,0.000581,9]
[320965084,1711722679757,-152.99,0.000581,9]
[320965085,1711722679766,-700.0,0.00058105,90]
[320965086,1711722679776,-312.76,0.0005812,2]
[320965087,1711722679786,-160.66712715,0.00058144,120]
[320965088,1711722679795,-151.4857083,0.00058241,120]
[320965089,1711722679804,-243.27777778,0.00058247,120]
[320965090,1711722679814,-1000.0,0.00058356,120]
[320965091,1711722679823,-778.53,0.00058356,120]
[320965092,1711722679833,-3765.42,0.00058356,120]
[320965093,1711722679842,-152.41256319,0.00058372,120]
[320965094,1711722679852,-700.0,0.00058379,90]
[320965095,1711722679861,-600.0,0.00058379,90]
[320965096,1711722679870,-500.0,0.00058379,90]
[320965097,1711722679880,-1291.50084436,0.0005838,7]
[320965098,1711722679889,-2082.47531551,0.0005838,7]
[320965099,1711722679898,-152.7686051,0.00058617,120]
[320965100,1711722679907,-778.53,0.0005863,120]
[320965101,1711722679916,-3765.42,0.0005863,120]
[320965102,1711722679925,-153.33171327,0.00058713,120]
[320965103,1711722679934,-153.24174957,0.00058792,120]
[320965104,1711722679943,-243.27777778,0.00058849,120]
[320965105,1711722679953,-152.41256319,0.00058897,120]
[320965106,1711722679962,-819.73,0.00058904,120]
[320965107,1711722679971,-819.73,0.00058904,120]
[320965108,1711722679980,-819.73,0.00058904,120]
[320965109,1711722679988,-819.73,0.00058904,120]
[320965110,1711722679998,-819.73,0.00058904,120]
[320965111,1711722680007,-819.73,0.00058904,120]
[320965112,1711722680017,-819.73,0.00058904,120]
[320965113,1711722680026,-819.73,0.00058904,120]
[320965114,1711722680035,-819.73,0.00058904,120]
[320965115,1711722680045,-819.73,0.00058904,120]
[320965116,1711722680054,-819.73,0.00058904,120]
[320965117,1711722680064,-819.73,0.00058904,120]
[320965118,1711722680075,-819.73,0.00058904,120]
[320965119,1711722680085,-819.73,0.00058904,120]
[320965120,1711722680095,-819.73,0.00058904,120]
[320965121,1711722680105,-819.73,0.00058904,120]
[320965122,1711722680114,-819.73,0.00058904,120]
[320965123,1711722680124,-819.73,0.00058904,120]
[320965124,1711722680134,-819.73,0.00058904,120]
[320965125,1711722680143,-819.73,0.00058904,120]
[320965126,1711722680155,-819.73,0.00058904,120]
[320965127,1711722680165,-819.73,0.00058904,120]
[320965128,1711722680175,-819.73,0.00058904,120]
[320965129,1711722680185,-819.93210723,0.00058904,120]
[320965130,1711722680195,-778.53,0.00058904,120]
[320965131,1711722680204,-3765.42,0.00058904,120]
[320965132,1711722680214,-700.0,0.00058927,90]
[320965133,1711722680223,-600.0,0.00058927,90]
[320965134,1711722680233,-500.0,0.00058927,90]
[320965135,1711722680242,-200.0,0.00058987,2]
[320965136,1711722680253,-7139.72710218,0.00059,120]
[320965137,1711722680264,-601.5194185,0.00059,120]
[320965138,1711722680274,-157.69803795,0.00059035,120]
[320965139,1711722680284,-150.0,0.00059098,120]
[320965140,1711722680294,-150.0,0.00059098,120]
[320965141,1711722680304,-150.0,0.00059098,120]
[320965142,1711722680314,-150.0,0.00059098,120]
[320965143,1711722680324,-3674.51945434,0.00059106,56]
[320965144,1711722680333,-1000.0,0.00059178,120]
[320965145,1711722680343,-778.53,0.00059178,120]
[320965146,1711722680353,-3765.42,0.00059178,120]
[320965147,1711722680362,-157.69803795,0.00059333,120]
[320965148,1711722680372,-151.0,0.00059397,120]
[320965149,1711722680381,-778.53,0.00059452,120]
[320965150,1711722680391,-3765.42,0.00059452,120]
[320965151,1711722680401,-243.27777778,0.00059452,120]
[320965152,1711722680411,-159.43933229,0.00059458,120]
[320965153,1711722680421,-150.72698386,0.00059474,80]
[320965154,1711722680430,-700.0,0.00059475,90]
[320965155,1711722680439,-600.0,0.00059475,90]
[320965156,1711722680449,-500.0,0.00059475,90]
[320965157,1711722680458,-153.24174957,0.00059483,120]
[320965158,1711722680468,-200.0,0.00059686,120]
[320965159,1711722680478,-800.0,0.00059686,120]
[320965160,1711722680487,-500.0,0.00059686,120]
[320965161,1711722680497,-200.0,0.00059686,120]
[320965162,1711722680508,-3000.0,0.00059726,120]
[320965163,1711722680517,-778.53,0.00059726,120]
[320965164,1711722680527,-3765.42,0.00059726,120]
[320965165,1711722680537,-152.41256319,0.0005983,120]
[320965166,1711722680547,-150.0,0.00059939,120]
[320965167,1711722680558,-150.0,0.00059939,120]
[320965168,1711722680568,-150.0,0.00059939,120]
[320965169,1711722680579,-150.0,0.00059939,120]
[320965170,1711722680589,-150.0,0.00059939,120]
[320965171,1711722680600,-150.0,0.00059939,120]
[320965172,1711722680610,-150.0,0.00059939,120]
[320965173,1711722680620,-151.4857083,0.00059942,120]
[320965174,1711722680632,-153.88,0.00059945,120]
[320965175,1711722680643,-179.12658074,0.0005998,120]
[320965176,1711722680654,-157.52568574,0.00059984,120]
[320965177,1711722680664,-7547.93178815,0.00059985,39]
[320965178,1711722680675,-200.0,0.00059987,2]
[320965179,1711722680686,-1000.0,0.00059999,120]
[320965180,1711722680697,-3000.0,0.00059999,120]
[320965181,1711722680707,-778.53,0.00059999,120]
[320965182,1711722680719,-3765.42,0.00059999,120]
[320965183,1711722680729,-155.0,0.0006,120]
[320965184,1711722680741,-575.3910698,0.0006,90]
[320965185,1711722680751,-10000.0,0.0006,4]
[320965186,1711722680763,-3198.00185383,0.0006,90]
[320965187,1711722680773,-155.0,0.0006,60]
[320965188,1711722680783,-8902.02758958,0.0006,120]
[320965189,1711722680794,-1494.19770646,0.0006,7]
[320965190,1711722680805,-39146.89619146,0.0006,120]
[320965191,1711722680815,-159.41557308,0.0006,120]
[320965192,1711722680826,-738.13171766,0.0006,112]
[320965193,1711722680836,-166.13,0.0006,120]
[320965194,1711722680846,-200.0,0.0006,120]
[320965195,1711722680856,-262.98,0.0006,30]
[320965196,1711722680866,-514.62,0.0006,14]
[320965197,1711722680876,-150.0,0.0006002,120]
[320965198,1711722680885,-700.0,0.00060023,90]
[320965199,1711722680895,-600.0,0.00060023,90]
[320965200,1711722680904,-500.0,0.00060023,90]
[320965201,1711722680914,-1729.25,0.00060037,10]
[320965202,1711722680924,-150.0,0.0006005,120]
[320965203,1711722680933,-243.27777778,0.00060055,120]
[320965204,1711722680943,-206.0,0.00060101,30]
[320965205,1711722680952,-150.0,0.00060102,120]
[320965206,1711722680962,-1130.72,0.00060124,120]
[320965207,1711722680971,-806.90977341,0.00060145,14]
[320965208,1711722680981,-150.0,0.00060161,120]
[320965209,1711722680991,-150.0,0.00060183,120]
[320965210,1711722681001,-150.0,0.00060205,120]
[320965211,1711722681012,-150.0,0.00060264,120]
[320965212,1711722681021,-150.0,0.00060272,120]
[320965213,1711722681031,-3000.0,0.00060273,120]
[320965214,1711722681040,-778.53,0.00060273,120]
[320965215,1711722681050,-3765.42,0.00060273,120]
[320965216,1711722681063,-3031.91,0.00060274,120]
[320965217,1711722681073,-160.66712715,0.00060291,120]
[320965218,1711722681082,-150.0,0.00060345,120]
[320965219,1711722681091,-150.0,0.00060383,120]
[320965220,1711722681102,-312.76,0.00060384,2]
[320965221,1711722681112,-150.0,0.00060426,120]
[320965222,1711722681121,-158.49334373,0.00060451,120]
[320965223,1711722681130,-150.0,0.00060472,120]
[320965224,1711722681141,-150.0,0.00060494,120]
[320965225,1711722681151,-150.0,0.00060508,120]
[320965226,1711722681161,-3000.0,0.00060547,120]
[320965227,1711722681170,-778.53,0.00060547,120]
[320965228,1711722681180,-3765.42,0.00060547,120]
[320965229,1711722681190,-700.0,0.00060571,90]
[320965230,1711722681199,-600.0,0.00060571,90]
[320965231,1711722681209,-500.0,0.00060571,90]
[320965232,1711722681218,-472.7885742,0.00060579,62]
[320965233,1711722681228,-150.0,0.00060589,120]
[320965234,1711722681237,-150.0,0.00060605,120]
[320965235,1711722681246,-150.0,0.00060605,120]
[320965236,1711722681257,-157.69803795,0.00060633,120]
[320965237,1711722681267,-243.27777778,0.00060658,120]
[320965238,1711722681277,-150.0,0.0006067,120]
[320965239,1711722681287,-150.0,0.00060716,120]
[320965240,1711722681298,-157.69803795,0.00060718,120]
[320965241,1711722681308,-150.0,0.00060738,120]
[320965242,1711722681318,-151.0,0.0006074,120]
[320965243,1711722681328,-151.4857083,0.00060744,120]
[320965244,1711722681337,-150.0,0.00060751,120]
[320965245,1711722681347,-1000.0,0.00060821,120]
[320965246,1711722681357,-3000.0,0.00060821,120]
[320965247,1711722681367,-778.53,0.00060821,120]
[320965248,1711722681377,-3765.42,0.00060821,120]
[320965249,1711722681387,-150.0,0.00060827,120]
[320965250,1711722681397,-150.0,0.00060833,120]
[320965251,1711722681407,-150.72698386,0.00060879,85]
[320965252,1711722681417,-150.0,0.00060914,120]
[320965253,1711722681427,-154.8752919,0.00060925,120]
[320965254,1711722681437,-157.52568574,0.00060938,120]
[320965255,1711722681447,-150.0,0.00060938,120]
[320965256,1711722681457,-3134.4,0.0006096,6]
[320965257,1711722681467,-200.0,0.00060987,3]
[320965258,1711722681477,-150.0,0.00060995,120]
[320965259,1711722681487,-1000.0,0.00061,120]
[320965260,1711722681497,-401.0,0.00061,115]
[320965261,1711722681508,-150.0,0.00061005,120]
[320965262,1711722681518,-150.0,0.00061049,120]
[320965263,1711722681527,-150.0,0.00061076,120]
[320965264,1711722681537,-3000.0,0.00061095,120]
[320965265,1711722681547,-778.76776621,0.00061095,120]
[320965266,1711722681557,-3765.52771687,0.00061095,120]
[320965267,1711722681567,-309.92,0.00061102,10]
[320965268,1711722681577,-700.0,0.00061119,90]
[320965269,1711722681587,-600.0,0.00061119,90]
[320965270,1711722681597,-500.0,0.00061119,90]
[320965271,1711722681606,-900.0,0.00061119,90]
[320965272,1711722681616,-157.52568574,0.00061148,120]
[320965273,1711722681627,-150.0,0.00061157,120]
[320965274,1711722681638,-150.0,0.0006116,120]
[320965275,1711722681648,-150.0,0.00061239,120]
[320965276,1711722681657,-243.27777778,0.0006126,120]
[320965277,1711722681668,-150.0,0.00061271,120]
[320965278,1711722681678,-150.0,0.00061271,120]
[320965279,1711722681687,-150.0,0.00061271,120]
[320965280,1711722681696,-152.99,0.000613,10]
[320965281,1711722681706,-152.99,0.000613,10]
[320965282,1711722681716,-156.57235486,0.0006131,120]
[320965283,1711722681726,-150.0,0.0006132,120]
[320965284,1711722681736,-3000.0,0.00061369,120]
[320965285,1711722681745,-150.0,0.00061382,120]
[320965286,1711722681756,-900.0,0.00061393,90]
[320965287,1711722681766,-152.402122,0.00061399,120]
[320965288,1711722681776,-150.0,0.00061401,120]
[320965289,1711722681785,-150.0,0.00061482,120]
[320965290,1711722681795,-150.0,0.00061493,120]
[320965291,1711722681805,-401.0,0.000615,116]
[320965292,1711722681815,-150.0,0.00061537,120]
[320965293,1711722681825,-7648.69,0.00061563,6]
[320965294,1711722681834,-150.0,0.00061563,120]
[320965295,1711722681844,-154.8752919,0.00061587,120]
[320965296,1711722681854,-150.0,0.00061604,120]
[320965297,1711722681864,-500.0,0.00061625,76]
[320965298,1711722681874,-500.0,0.00061625,76]
[320965299,1711722681884,-500.0,0.00061625,76]
[320965300,1711722681894,-500.0,0.00061625,76]
[320965301,1711722681904,-500.0,0.00061625,76]
[320965302,1711722681914,-500.0,0.00061625,86]
[320965303,1711722681925,-2000.0,0.00061636,10]
[320965304,1711722681934,-154.73390362,0.00061642,120]
[320965305,1711722681944,-1000.0,0.00061643,120]
[320965306,1711722681954,-3000.0,0.00061643,120]
[320965307,1711722681964,-150.0,0.00061645,120]
[320965308,1711722681974,-700.0,0.00061667,90]
[320965309,1711722681983,-600.0,0.00061667,90]
[320965310,1711722681993,-500.0,0.00061667,90]
[320965311,1711722682003,-900.0,0.00061667,90]
[320965312,1711722682014,-150.0,0.00061715,120]
[320965313,1711722682023,-150.0,0.00061726,120]
[320965314,1711722682033,-200.0,0.00061786,120]
[320965315,1711722682042,-150.0,0.00061804,120]
[320965316,1711722682052,-150.0,0.00061807,120]
[320965317,1711722682062,-150.0,0.00061826,120]
[320965318,1711722682072,-800.0,0.00061827,120]
[320965319,1711722682083,-243.27777778,0.00061863,120]
[320965320,1711722682093,-150.0,0.00061888,120]
[320965321,1711722682102,-152.402122,0.00061899,120]
[320965322,1711722682112,-3000.0,0.00061917,120]
[320965323,1711722682122,-150.0,0.00061937,120]
[320965324,1711722682132,-150.0,0.00061937,120]
[320965325,1711722682142,-900.0,0.00061941,90]
[320965326,1711722682151,-150.0,0.0006197,120]
[320965327,1711722682162,-200.0,0.00061987,3]
[320965328,1711722682173,-6642.13923493,0.00061991,2]
[320965329,1711722682183,-1392.0522324,0.00062,120]
[320965330,1711722682193,-1000.0,0.00062,120]
[320965331,1711722682202,-150.0,0.00062,14]
[320965332,1711722682212,-150.0,0.00062,14]
[320965333,1711722682222,-401.0,0.00062,117]
[320965334,1711722682397,-150.04,0.00062,120]
[320965335,1711722682408,-150.04,0.00062,120]
[320965336,1711722682417,-150.04,0.00062,120]
[320965337,1711722682427,-150.04,0.00062,120]
[320965338,1711722682437,-150.04,0.00062,120]
[320965339,1711722682446,-150.04,0.00062,120]
[320965340,1711722682455,-150.04,0.00062,120]
[320965341,1711722682465,-150.04,0.00062,120]
[320965342,1711722682475,-150.04,0.00062,120]
[320965343,1711722682484,-150.04,0.00062,120]
[320965344,1711722682493,-150.04,0.00062,120]
[320965345,1711722682503,-150.04,0.00062,120]
[320965346,1711722682514,-150.04,0.00062,120]
[320965347,1711722682523,-150.04,0.00062,120]
[320965348,1711722682533,-150.04,0.00062,120]
[320965349,1711722682542,-150.04,0.00062,120]
[320965350,1711722682552,-150.04,0.00062,120]
[320965351,1711722682561,-150.04,0.00062,120]
[320965352,1711722682571,-150.04,0.00062,120]
[320965353,1711722682581,-150.04,0.00062,120]
[320965354,1711722682591,-150.04,0.00062,120]
[320965355,1711722682600,-150.04,0.00062,120]
[320965356,1711722682609,-150.04,0.00062,120]
[320965357,1711722682619,-150.04,0.00062,120]
[320965358,1711722682628,-150.04,0.00062,120]
[320965359,1711722682638,-150.04,0.00062,120]
[320965360,1711722682648,-150.04,0.00062,120]
[320965361,1711722682657,-150.04,0.00062,120]
[320965362,1711722682667,-150.04,0.00062,120]
[320965363,1711722682677,-150.04,0.00062,120]
[320965364,1711722682687,-150.04,0.00062,120]
[320965365,1711722682697,-150.04,0.00062,120]
[320965366,1711722682707,-150.04,0.00062,120]
[320965367,1711722682717,-150.04,0.00062,120]
[320965368,1711722682727,-150.04,0.00062,120]
[320965369,1711722682737,-150.04,0.00062,120]
[320965370,1711722682747,-150.04,0.00062,120]
[320965371,1711722682761,-150.04,0.00062,120]
[320965372,1711722682771,-150.04,0.00062,120]
[320965373,1711722682781,-150.04,0.00062,120]
[320965374,1711722682790,-150.04,0.00062,120]
[320965375,1711722682801,-150.04,0.00062,120]
[320965376,1711722682811,-150.04,0.00062,120]
[320965377,1711722682820,-150.04,0.00062,120]
[320965378,1711722682830,-150.04,0.00062,120]
[320965379,1711722682840,-150.04,0.00062,120]
[320965380,1711722682850,-150.04,0.00062,120]
[320965381,1711722682859,-150.04,0.00062,120]
[320965382,1711722682869,-150.04,0.00062,120]
[320965383,1711722682878,-150.04,0.00062,120]
[320965384,1711722682888,-150.04,0.00062,120]
[320965385,1711722682897,-150.04,0.00062,120]
[320965386,1711722682906,-150.04,0.00062,120]
[320965387,1711722682915,-150.04,0.00062,120]
[320965388,1711722682925,-150.04,0.00062,120]
[320965389,1711722682935,-150.0,0.00062048,120]
[320965390,1711722682944,-150.0,0.00062051,120]
[320965391,1711722682953,-150.0,0.0006207,120]
[320965392,1711722682962,-151.0,0.00062082,120]
[320965393,1711722682972,-4383.02987368,0.00062089,2]
[320965394,1711722682981,-2000.0,0.000621,120]
[320965395,1711722682991,-150.0,0.00062132,120]
[320965396,1711722683000,-7547.93178815,0.00062157,42]
[320965397,1711722683010,-150.0,0.00062159,120]
[320965398,1711722683019,-19249.0,0.00062166,6]
[320965399,1711722683028,-152.41256319,0.00062177,120]
[320965400,1711722683038,-2000.0,0.000622,120]
[320965401,1711722683048,-150.0,0.00062213,120]
[320965402,1711722683058,-700.0,0.00062215,90]
[320965403,1711722683070,-697.57903932,0.00062215,90]
[320965404,1711722683080,-505.41107301,0.00062215,90]
[320965405,1711722683089,-900.0,0.00062215,90]
[320965406,1711722683099,-154.8752919,0.00062249,120]
[320965407,1711722683107,-151.968571,0.0006227,120]
[320965408,1711722683117,-151.0,0.0006227,30]
[320965409,1711722683126,-151.0,0.0006227,120]
[320965410,1711722683136,-152.074164,0.0006227,120]
[320965411,1711722683146,-151.0,0.0006227,120]
[320965412,1711722683155,-150.0,0.0006227,120]
[320965413,1711722683165,-152.41256319,0.00062278,120]
[320965414,1711722683174,-150.72698386,0.00062284,91]
[320965415,1711722683183,-151.4857083,0.00062289,120]
[320965416,1711722683193,-2000.0,0.000623,120]
[320965417,1711722683202,-150.0,0.00062337,120]
[320965418,1711722683212,-150.0,0.00062381,120]
[320965419,1711722683221,-152.402122,0.00062399,120]
[320965420,1711722683231,-2000.0,0.000624,120]
[320965421,1711722683240,-1000.0,0.00062465,120]
[320965422,1711722683250,-243.27777778,0.00062466,120]
[320965423,1711722683259,-900.0,0.00062489,90]
[320965424,1711722683269,-150.0,0.00062492,120]
[320965425,1711722683278,-1000.0,0.000625,120]
[320965426,1711722683288,-150.0,0.000625,15]
[320965427,1711722683298,-150.0,0.000625,15]
[320965428,1711722683308,-999.99999999,0.000625,120]
[320965429,1711722683317,-401.0,0.000625,118]
[320965430,1711722683327,-157.52568574,0.00062512,120]
[320965431,1711722683337,-150.0,0.00062603,120]
[320965432,1711722683346,-150.0,0.00062603,120]
[320965433,1711722683355,-150.0,0.00062603,120]
[320965434,1711722683365,-312.76,0.00062648,2]
[320965435,1711722683375,-153.88,0.00062685,120]
[320965436,1711722683384,-150.0,0.00062714,120]
[320965437,1711722683393,-700.0,0.00062763,90]
[320965438,1711722683403,-500.0,0.0006281,120]
[320965439,1711722683412,-150.0,0.00062825,120]
[320965440,1711722683421,-150.0,0.00062869,120]
[320965441,1711722683431,-150.0,0.00062936,120]
[320965442,1711722683440,-150.5,0.0006297,15]
[320965443,1711722683450,-150.5,0.0006297,15]
[320965444,1711722683459,-150.5,0.0006298,15]
[320965445,1711722683469,-150.5,0.0006298,15]
[320965446,1711722683478,-192.0,0.0006298,15]
[320965447,1711722683488,-200.0,0.00062987,4]
[320965448,1711722683498,-150.5,0.0006299,15]
[320965449,1711722683509,-150.5,0.0006299,15]
[320965450,1711722683518,-150.5,0.0006299,15]
[320965451,1711722683527,-1000.0,0.00063,120]
[320965452,1711722683536,-455609.1,0.00063,120]
[320965453,1711722683547,-201.593565,0.00063,120]
[320965454,1711722683557,-201.593565,0.00063,120]
[320965455,1711722683566,-151.0,0.00063,120]
[320965456,1711722683575,-151.0,0.00063,120]
[320965457,1711722683585,-154.30408,0.00063,7]